[Event "Western Asian Girls Chess-ch 2023"]
[Site "Colombo"]
[Date "2023.12.01"]
[Round "3.1"]
[White "Sachi Jain"]
[Black "Rindhiya V"]
[Result "0-1"]
[ECO "C54"]
[WhiteElo "1743"]
[BlackElo "1876"]
[Annotator "NA RC"]
[PlyCount "112"]
[EventDate "2023.11.30"]
[EventCountry "SRI"]
[SourceTitle "playchess.com"]
[Source "ChessBase"]
[SourceQuality "1"]
[TimeControl "5400+30"]

1. e4 {[%emt 0:00:05]} e5 {[%emt 0:01:50]} 2. Nf3 {[%emt 0:00:27]} Nc6 {[%emt 0:00:05]} 3. Bc4 {[%emt 0:00:17]} Bc5 {[%emt 0:00:05]} 4. c3 {[%emt 0:00:16]} Nf6 {[%emt 0:00:07]} 5. d3 {[%emt 0:00:17]} d6 {[%emt 0:00:05]} 6. Nbd2 {[%emt 0:02:49]} a6 {[%emt 0:00:25]} 7. Nf1 {[%emt 0:01:13]} h6 {[%emt 0:05:46]} 8. Ng3 {[%emt 0:00:26]} O-O {[%emt 0:01:40]} 9. O-O {[%emt 0:01:21]} Na5 {[%emt 0:01:47]} 10. b4 {[%emt 0:12:22]} Nxc4 {[%emt 0:00:21]} 11. bxc5 {[%emt 0:00:10]} Na5 {[%emt 0:00:25]} 12. cxd6 {[%emt 0:12:23]} cxd6 {[%emt 0:00:26]} 13. Qe2 {[%emt 0:00:42]} Be6 {[%emt 0:24:03]} 14. Nh4 {[%emt 0:08:47]} d5 {[%emt 0:02:28]} 15. Re1 {[%emt 0:29:49]} dxe4 {[%emt 0:14:04]} 16. dxe4 {[%emt 0:00:08]} Rc8 {[%emt 0:14:32]} 17. Ba3 {[%emt 0:04:37]} Re8 {[%emt 0:00:11]} 18. Red1 {[%emt 0:01:37]} Qb6 {[%emt 0:15:02]} 19. Rab1 {[%emt 0:02:40]} Qc6 {[%emt 0:02:22]} 20. Bb4 {[%emt 0:11:54]} Nc4 {[%emt 0:01:49]} 21. Nhf5 {[%emt 0:00:14]} Bxf5 {[%emt 0:01:08]} 22. Nxf5 {[%emt 0:00:04]} Qxe4 {[%emt 0:03:56]} 23. Qxe4 {[%emt 0:00:12]} Nxe4 {[%emt 0:09:23]} 24. Rd7 {[%emt 0:02:11]} Rb8 {[%emt 0:00:00]} 25. Re1 {[%emt 0:01:02]} Nf6 {[%emt 0:00:00]} 26. Rc7 {[%emt 0:01:28]} b5 {[%emt 0:00:00]} 27. Ne7+ {[%emt 0:02:21]} Kh7 {[%emt 0:00:00]} 28. Nc6 {[%emt 0:01:00]} Rbc8 {[%emt 0:00:00]} 29. Rxc8 {[%emt 0:00:11]} Rxc8 {[%emt 0:00:00]} 30. Nxe5 {[%emt 0:02:07]} Re8 {[%emt 0:00:00]} 31. f4 {[%emt 0:01:38]} Nd5 {[%emt 0:03:23]} 32. Rd1 {[%emt 0:01:06]} Nxf4 {[%emt 0:01:07]} 33. Nxc4 {[%emt 0:00:23]} bxc4 {[%emt 0:00:00]} 34. Rd6 {[%emt 0:00:11]} Re6 {[%emt 0:00:00]} 35. Rd7 {[%emt 0:00:51]} Kg6 {[%emt 0:01:30]} 36. Rc7 {[%emt 0:00:12]} Nd3 {[%emt 0:00:00]} 37. h3 {[%emt 0:00:30]} Ne5 {[%emt 0:00:29]} 38. Rc5 {[%emt 0:00:50]} Kf5 {[%emt 0:00:28]} 39. Ba5 {[%emt 0:00:24]} f6 {[%emt 0:00:30]} 40. Bc7 {[%emt 0:00:04]} Rc6 {[%emt 0:00:22]} 41. Rxc6 {[%emt 0:00:12]} Nxc6 {[%emt 0:01:11]} 42. Kf2 {[%emt 0:00:01]} Ke4 {[%emt 0:00:00]} 43. Ke2 {[%emt 0:00:01]} Ne7 {[%emt 0:00:00]} 44. Bd6 {[%emt 0:00:36]} Nd5 {[%emt 0:00:04]} 45. Kd2 {[%emt 0:00:08]} g5 {[%emt 0:00:49]} 46. g3 {[%emt 0:01:07]} f5 {[%emt 0:00:34]} 47. Bf8 {[%emt 0:00:49]} h5 {[%emt 0:00:07]} 48. Bh6 {[%emt 0:00:05]} g4 {[%emt 0:00:49]} 49. hxg4 {[%emt 0:00:05]} hxg4 {[%emt 0:00:06]} 50. Bg7 {[%emt 0:00:39]} Kf3 {[%emt 0:00:31]} 51. Be5 {[%emt 0:00:06]} f4 {[%emt 0:01:20]} 52. gxf4 {[%emt 0:00:02]} Nxf4 {[%emt 0:00:08]} 53. Kc2 {[%emt 0:00:28]} g3 {[%emt 0:00:23]} 54. Bd4 {[%emt 0:03:52]} g2 {[%emt 0:00:13]} 55. Kb2 {[%emt 0:00:00]} Nd3+ {[%emt 0:00:08]} 56. Ka3 {[%emt 0:00:00]} Nf2 {[%emt 0:00:06]} 0-1

[Event "Western Asian Girls Chess-ch 2023"]
[Site "Colombo"]
[Date "2023.12.01"]
[Round "3.2"]
[White "Shohradova, Lala"]
[Black "Gunawardhana, Devindya Oshini"]
[Result "0-1"]
[ECO "E11"]
[WhiteElo "1846"]
[BlackElo "1741"]
[Annotator "NA RC"]
[PlyCount "94"]
[EventDate "2023.11.30"]
[EventCountry "SRI"]
[SourceTitle "playchess.com"]
[Source "ChessBase"]
[SourceQuality "1"]
[TimeControl "5400+30"]

1. d4 {[%emt 0:00:03]} Nf6 {[%emt 0:00:06]} 2. c4 {[%emt 0:00:06]} e6 {[%emt 0:00:05]} 3. Nf3 {[%emt 0:00:05]} Nc6 {[%emt 0:00:21]} 4. g3 {[%emt 0:01:28]} Bb4+ {[%emt 0:00:34]} 5. Bd2 {[%emt 0:00:09]} Qe7 {[%emt 0:00:06]} 6. Bg2 {[%emt 0:00:25]} O-O {[%emt 0:01:32]} 7. O-O {[%emt 0:00:23]} Bxd2 {[%emt 0:02:58]} 8. Nbxd2 {[%emt 0:01:31]} d6 {[%emt 0:01:05]} 9. e4 {[%emt 0:05:05]} a5 {[%emt 0:00:49]} 10. Re1 {[%emt 0:04:02]} e5 {[%emt 0:00:15]} 11. d5 {[%emt 0:04:06]} Nb8 {[%emt 0:00:12]} 12. b3 {[%emt 0:04:44]} Na6 {[%emt 0:12:18]} 13. a3 {[%emt 0:00:52]} Bd7 {[%emt 0:03:24]} 14. Qc2 {[%emt 0:01:46]} Rfc8 {[%emt 0:10:32]} 15. Red1 {[%emt 0:08:00]} b5 {[%emt 0:07:07]} 16. Ne1 {[%emt 0:03:00]} h5 {[%emt 0:12:00]} 17. Nd3 {[%emt 0:04:53]} c6 {[%emt 0:05:00]} 18. Qb2 {[%emt 0:13:17]} cxd5 {[%emt 0:01:31]} 19. cxd5 {[%emt 0:00:44]} h4 {[%emt 0:01:09]} 20. Nf1 {[%emt 0:02:51]} hxg3 {[%emt 0:07:57]} 21. hxg3 {[%emt 0:00:17]} g6 {[%emt 0:01:39]} 22. Rdc1 {[%emt 0:02:21]} Re8 {[%emt 0:07:46]} 23. Qd2 {[%emt 0:03:02]} Kg7 {[%emt 0:23:34]} 24. f3 {[%emt 0:01:13]} Qd8 {[%emt 0:00:00]} 25. Ne3 {[%emt 0:00:20]} Rh8 {[%emt 0:00:00]} 26. a4 {[%emt 0:01:09]} bxa4 {[%emt 0:00:00]} 27. bxa4 {[%emt 0:00:03]} Rb8 {[%emt 0:00:00]} 28. Nc4 {[%emt 0:05:22]} Nb4 {[%emt 0:00:00]} 29. Nf2 {[%emt 0:00:10]} Ne8 {[%emt 0:00:00]} 30. Nd1 {[%emt 0:02:41]} Bc8 {[%emt 0:00:00]} 31. Nc3 {[%emt 0:03:09]} Ba6 {[%emt 0:00:00]} 32. Bf1 {[%emt 0:05:28]} Qd7 {[%emt 0:00:00]} 33. Nb5 {[%emt 0:04:27]} Qd8 {[%emt 0:02:20]} 34. Qf2 {[%emt 0:00:52]} Rb7 {[%emt 0:01:01]} 35. Nca3 {[%emt 0:03:33]} Qg5 {[%emt 0:01:01]} 36. Rc3 {[%emt 0:01:09]} f5 {[%emt 0:01:01]} 37. Nc4 {[%emt 0:03:15]} Bxb5 {[%emt 0:00:31]} 38. axb5 {[%emt 0:00:23]} fxe4 {[%emt 0:00:03]} 39. fxe4 {[%emt 0:00:30]} Nf6 {[%emt 0:00:48]} 40. Bg2 {[%emt 0:04:24]} Ng4 {[%emt 0:00:09]} 41. Qd2 {[%emt 0:03:51]} Qh5 {[%emt 0:00:06]} 42. Rf3 {[%emt 0:00:30]} Nh2 {[%emt 0:00:11]} 43. Rf2 {[%emt 0:00:31]} Ng4 {[%emt 0:00:08]} 44. Nxd6 {[%emt 0:03:59]} Nxf2 {[%emt 0:02:06]} 45. Nxb7 {[%emt 0:01:42]} Qh2+ {[%emt 0:00:14]} 46. Kf1 {[%emt 0:00:18]} Nxe4 {[%emt 0:00:07]} 47. Qe3 {[%emt 0:01:17]} Rf8+ {[%emt 0:00:06]} 0-1

[Event "Western Asian Girls Chess-ch 2023"]
[Site "Colombo"]
[Date "2023.12.01"]
[Round "3.3"]
[White "Sultanbek, Zeinep"]
[Black "Gamage, Desandhi Dhihansa"]
[Result "1-0"]
[ECO "D02"]
[WhiteElo "2008"]
[BlackElo "1608"]
[Annotator "NA RC"]
[PlyCount "141"]
[EventDate "2023.11.30"]
[EventCountry "SRI"]
[SourceTitle "playchess.com"]
[Source "ChessBase"]
[SourceQuality "1"]
[TimeControl "5400+30"]

1. Nf3 {[%emt 0:04:53]} Nf6 {[%emt 0:00:05]} 2. g3 {[%emt 0:00:40]} e6 {[%emt 0:00:11]} 3. Bg2 {[%emt 0:00:07]} d5 {[%emt 0:00:06]} 4. O-O {[%emt 0:00:03]} c5 {[%emt 0:00:04]} 5. d4 {[%emt 0:00:04]} cxd4 {[%emt 0:00:06]} 6. Nxd4 {[%emt 0:00:17]} e5 {[%emt 0:00:06]} 7. Nb3 {[%emt 0:00:01]} Be6 {[%emt 0:00:05]} 8. Bg5 {[%emt 0:00:38]} Nbd7 {[%emt 0:01:30]} 9. Qd3 {[%emt 0:10:41]} h6 {[%emt 0:03:38]} 10. Bxf6 {[%emt 0:00:17]} Nxf6 {[%emt 0:00:08]} 11. Rd1 {[%emt 0:00:12]} Rc8 {[%emt 0:08:16]} 12. N1d2 {[%emt 0:06:39]} Be7 {[%emt 0:04:21]} 13. c3 {[%emt 0:01:25]} a6 {[%emt 0:07:34]} 14. e4 {[%emt 0:02:01]} Bg4 {[%emt 0:12:35]} 15. Re1 {[%emt 0:00:29]} dxe4 {[%emt 0:09:46]} 16. Qxd8+ {[%emt 0:00:36]} Kxd8 {[%emt 0:00:22]} 17. Nxe4 {[%emt 0:00:08]} Rc7 {[%emt 0:00:30]} 18. h3 {[%emt 0:00:37]} Be6 {[%emt 0:01:41]} 19. Rad1+ {[%emt 0:00:20]} Kc8 {[%emt 0:00:58]} 20. Nd6+ {[%emt 0:00:56]} Kb8 {[%emt 0:02:14]} 21. Nxb7 {[%emt 0:04:27]} Rxb7 {[%emt 0:03:50]} 22. Bxb7 {[%emt 0:00:07]} Kxb7 {[%emt 0:00:02]} 23. Rxe5 {[%emt 0:00:07]} Kb6 {[%emt 0:03:42]} 24. c4 {[%emt 0:15:19]} Rd8 {[%emt 0:02:35]} 25. c5+ {[%emt 0:00:16]} Kc7 {[%emt 0:00:55]} 26. Nd4 {[%emt 0:00:25]} Kc8 {[%emt 0:09:24]} 27. Ree1 {[%emt 0:04:25]} Bf8 {[%emt 0:05:36]} 28. Nxe6 {[%emt 0:02:10]} Rxd1 {[%emt 0:00:25]} 29. Rxd1 {[%emt 0:00:05]} fxe6 {[%emt 0:00:05]} 30. Re1 {[%emt 0:01:11]} Kd7 {[%emt 0:00:39]} 31. c6+ {[%emt 0:00:06]} Kxc6 {[%emt 0:00:38]} 32. Rxe6+ {[%emt 0:00:02]} Bd6 {[%emt 0:00:47]} 33. Kg2 {[%emt 0:00:07]} Kd5 {[%emt 0:01:08]} 34. Re2 {[%emt 0:00:08]} a5 {[%emt 0:03:17]} 35. f4 {[%emt 0:00:32]} Kc4 {[%emt 0:01:22]} 36. Kf3 {[%emt 0:00:30]} Nd5 {[%emt 0:02:26]} 37. Rc2+ {[%emt 0:06:34]} Kd3 {[%emt 0:00:28]} 38. Rc1 {[%emt 0:00:16]} Be7 {[%emt 0:03:49]} 39. Rd1+ {[%emt 0:00:11]} Kc4 {[%emt 0:00:11]} 40. Ke4 {[%emt 0:00:07]} Nb4 {[%emt 0:01:35]} 41. Rc1+ {[%emt 0:01:33]} Kb5 {[%emt 0:00:09]} 42. a3 {[%emt 0:00:20]} Na6 {[%emt 0:00:32]} 43. b4 {[%emt 0:00:28]} axb4 {[%emt 0:02:01]} 44. axb4 {[%emt 0:00:01]} Nxb4 {[%emt 0:00:13]} 45. Kf5 {[%emt 0:00:07]} Bf6 {[%emt 0:00:42]} 46. g4 {[%emt 0:02:22]} Nd5 {[%emt 0:00:36]} 47. g5 {[%emt 0:00:09]} hxg5 {[%emt 0:03:00]} 48. fxg5 {[%emt 0:00:02]} Ne7+ {[%emt 0:02:24]} 49. Kg4 {[%emt 0:00:22]} Be5 {[%emt 0:00:28]} 50. Kh5 {[%emt 0:01:15]} Nd5 {[%emt 0:01:47]} 51. Kg6 {[%emt 0:02:46]} Nf4+ {[%emt 0:03:39]} 52. Kf5 {[%emt 0:00:01]} Nxh3 {[%emt 0:00:44]} 53. Kxe5 {[%emt 0:00:47]} Nxg5 {[%emt 0:00:07]} 54. Kd5 {[%emt 0:00:01]} Nf3 {[%emt 0:00:40]} 55. Rb1+ {[%emt 0:00:06]} Ka4 {[%emt 0:00:12]} 56. Rb2 {[%emt 0:00:33]} g5 {[%emt 0:00:37]} 57. Rf2 {[%emt 0:00:17]} g4 {[%emt 0:01:04]} 58. Rg2 {[%emt 0:00:05]} g3 {[%emt 0:00:18]} 59. Kc5 {[%emt 0:01:03]} Ne1 {[%emt 0:01:21]} 60. Re2 {[%emt 0:01:15]} Nf3 {[%emt 0:01:48]} 61. Re4+ {[%emt 0:00:08]} Kb3 {[%emt 0:00:53]} 62. Re3+ {[%emt 0:00:02]} Kc2 {[%emt 0:00:08]} 63. Rxf3 {[%emt 0:00:03]} g2 {[%emt 0:00:05]} 64. Rf2+ {[%emt 0:00:02]} Kd1 {[%emt 0:00:06]} 65. Rxg2 {[%emt 0:00:05]} Ke1 {[%emt 0:00:03]} 66. Kd4 {[%emt 0:00:05]} Kf1 {[%emt 0:00:04]} 67. Rd2 {[%emt 0:00:06]} Ke1 {[%emt 0:00:07]} 68. Ke3 {[%emt 0:00:02]} Kf1 {[%emt 0:00:05]} 69. Kf3 {[%emt 0:00:04]} Ke1 {[%emt 0:00:12]} 70. Rd3 {[%emt 0:00:02]} Kf1 {[%emt 0:00:04]} 71. Rd1# {[%emt 0:43:39]} 1-0

[Event "Western Asian Girls Chess-ch 2023"]
[Site "Colombo"]
[Date "2023.12.01"]
[Round "3.4"]
[White "Sanudula, K M Dahamdi"]
[Black "Agajanova, Meryem"]
[Result "0-1"]
[ECO "D02"]
[WhiteElo "1709"]
[BlackElo "1854"]
[Annotator "NA RC"]
[PlyCount "110"]
[EventDate "2023.11.30"]
[EventCountry "SRI"]
[SourceTitle "playchess.com"]
[Source "ChessBase"]
[SourceQuality "1"]
[TimeControl "5400+30"]

1. d4 {[%emt 0:08:15]} d5 {[%emt 0:00:08]} 2. Nf3 {[%emt 0:00:57]} Nf6 {[%emt 0:00:17]} 3. c3 {[%emt 0:01:21]} c5 {[%emt 0:01:24]} 4. Ne5 {[%emt 0:00:44]} Nc6 {[%emt 0:01:48]} 5. Nxc6 {[%emt 0:05:55]} bxc6 {[%emt 0:00:13]} 6. dxc5 {[%emt 0:00:17]} e5 {[%emt 0:03:27]} 7. b4 {[%emt 0:00:07]} a5 {[%emt 0:00:38]} 8. a3 {[%emt 0:00:45]} Be7 {[%emt 1:26:35]} 9. Bb2 {[%emt 0:01:09]} O-O {[%emt 0:00:00]} 10. Nd2 {[%emt 0:00:27]} Bf5 {[%emt 0:00:00]} 11. e3 {[%emt 0:01:09]} Qb8 {[%emt 0:00:00]} 12. Qc1 {[%emt 0:05:44]} d4 {[%emt 0:00:00]} 13. cxd4 {[%emt 0:02:26]} exd4 {[%emt 0:00:00]} 14. Bxd4 {[%emt 0:01:57]} axb4 {[%emt 0:00:00]} 15. Bc4 {[%emt 0:01:42]} Rd8 {[%emt 0:00:00]} 16. O-O {[%emt 0:03:59]} Ng4 {[%emt 0:00:00]} 17. g3 {[%emt 0:05:03]} Bf6 {[%emt 0:00:00]} 18. Nf3 {[%emt 0:12:30]} bxa3 {[%emt 0:00:00]} 19. h3 {[%emt 0:11:20]} Ne5 {[%emt 0:00:00]} 20. Bxe5 {[%emt 0:04:49]} Bxe5 {[%emt 0:00:00]} 21. Nxe5 {[%emt 0:00:03]} Qxe5 {[%emt 0:00:00]} 22. Rxa3 {[%emt 0:01:40]} Rxa3 {[%emt 0:00:00]} 23. Qxa3 {[%emt 0:00:02]} Bxh3 {[%emt 0:00:00]} 24. Qa5 {[%emt 0:03:06]} Qf6 {[%emt 0:00:00]} 25. Re1 {[%emt 0:02:06]} g6 {[%emt 0:00:00]} 26. Bf1 {[%emt 0:08:23]} Bxf1 {[%emt 0:00:00]} 27. Rxf1 {[%emt 0:00:39]} Rb8 {[%emt 0:00:00]} 28. Rc1 {[%emt 0:04:12]} Rb2 {[%emt 0:00:00]} 29. Qe1 {[%emt 0:02:43]} Qf5 {[%emt 0:00:00]} 30. e4 {[%emt 0:03:17]} Qf3 {[%emt 0:00:00]} 31. Rc3 {[%emt 0:00:44]} Re2 {[%emt 0:01:02]} 32. Rxf3 {[%emt 0:01:13]} Rxe1+ {[%emt 0:00:05]} 33. Kg2 {[%emt 0:00:02]} Rxe4 {[%emt 0:00:06]} 34. Rc3 {[%emt 0:00:46]} Kg7 {[%emt 0:00:42]} 35. f4 {[%emt 0:00:50]} Rd4 {[%emt 0:01:47]} 36. Kf3 {[%emt 0:00:24]} Rd5 {[%emt 0:00:43]} 37. Ke4 {[%emt 0:00:21]} f5+ {[%emt 0:01:12]} 38. Ke3 {[%emt 0:00:13]} Kf6 {[%emt 0:00:17]} 39. Rc4 {[%emt 0:00:08]} h6 {[%emt 0:00:39]} 40. Rc1 {[%emt 0:00:33]} g5 {[%emt 0:01:12]} 41. fxg5+ {[%emt 0:00:12]} hxg5 {[%emt 0:00:21]} 42. Rc3 {[%emt 0:00:42]} Ke5 {[%emt 0:00:27]} 43. Rc4 {[%emt 0:00:16]} Rd1 {[%emt 0:00:47]} 44. Rc2 {[%emt 0:00:27]} Rd4 {[%emt 0:01:31]} 45. Rc3 {[%emt 0:01:56]} f4+ {[%emt 0:00:24]} 46. Kf3 {[%emt 0:01:36]} fxg3 {[%emt 0:00:23]} 47. Kxg3 {[%emt 0:00:02]} Kd5 {[%emt 0:00:14]} 48. Rc2 {[%emt 0:00:15]} g4 {[%emt 0:00:22]} 49. Rc1 {[%emt 0:00:32]} Rc4 {[%emt 0:00:24]} 50. Rd1+ {[%emt 0:00:36]} Kxc5 {[%emt 0:08:22]} 51. Rd8 {[%emt 0:00:04]} Rd4 {[%emt 0:00:00]} 52. Rc8 {[%emt 0:00:05]} Kb5 {[%emt 0:00:00]} 53. Rb8+ {[%emt 0:00:03]} Kc4 {[%emt 0:00:00]} 54. Rc8 {[%emt 0:00:10]} c5 {[%emt 0:00:00]} 55. Rb8 {[%emt 0:00:10]} Kd3 {[%emt 0:00:00]} 0-1

[Event "Western Asian Girls Chess-ch 2023"]
[Site "Colombo"]
[Date "2023.12.01"]
[Round "3.5"]
[White "Newansa, M Esandi"]
[Black "Bhagyashree Patil"]
[Result "1/2-1/2"]
[ECO "D00"]
[WhiteElo "1531"]
[BlackElo "1830"]
[Annotator "NA RC"]
[PlyCount "135"]
[EventDate "2023.11.30"]
[EventCountry "SRI"]
[SourceTitle "playchess.com"]
[Source "ChessBase"]
[SourceQuality "1"]
[TimeControl "5400+30"]

1. d4 {[%emt 0:16:14]} d5 {[%emt 0:00:07]} 2. Bf4 {[%emt 0:00:06]} Nf6 {[%emt 0:00:04]} 3. e3 {[%emt 0:00:04]} e6 {[%emt 0:00:07]} 4. Nd2 {[%emt 0:00:04]} c5 {[%emt 0:00:05]} 5. c3 {[%emt 0:00:05]} Bd6 {[%emt 0:00:05]} 6. Ngf3 {[%emt 0:00:19]} Qc7 {[%emt 0:00:13]} 7. Bxd6 {[%emt 0:00:33]} Qxd6 {[%emt 0:00:06]} 8. Ne5 {[%emt 0:00:11]} Nc6 {[%emt 0:03:03]} 9. f4 {[%emt 0:01:49]} Nd7 {[%emt 0:04:30]} 10. Bd3 {[%emt 0:01:39]} b6 {[%emt 0:03:37]} 11. O-O {[%emt 0:07:08]} g6 {[%emt 0:07:00]} 12. Bb5 {[%emt 0:02:51]} Bb7 {[%emt 0:02:55]} 13. Qa4 {[%emt 0:01:55]} Rc8 {[%emt 0:01:29]} 14. Nxd7 {[%emt 0:00:39]} Qxd7 {[%emt 0:01:55]} 15. dxc5 {[%emt 0:01:04]} bxc5 {[%emt 0:00:12]} 16. Nb3 {[%emt 0:00:24]} a6 {[%emt 0:09:46]} 17. Bxa6 {[%emt 0:02:34]} Bxa6 {[%emt 0:01:29]} 18. Qxa6 {[%emt 0:00:19]} Ne7 {[%emt 0:01:30]} 19. Qe2 {[%emt 0:05:00]} O-O {[%emt 0:00:25]} 20. Rfd1 {[%emt 0:00:17]} Qc7 {[%emt 0:07:22]} 21. c4 {[%emt 0:06:52]} dxc4 {[%emt 0:04:58]} 22. Nd2 {[%emt 0:01:45]} c3 {[%emt 0:03:18]} 23. bxc3 {[%emt 0:00:13]} Nd5 {[%emt 0:01:25]} 24. Rac1 {[%emt 0:02:00]} Qa7 {[%emt 0:11:46]} 25. Nc4 {[%emt 0:02:03]} Qa6 {[%emt 0:02:59]} 26. Rd2 {[%emt 0:07:59]} Rb8 {[%emt 0:03:40]} 27. g3 {[%emt 0:02:09]} Rbd8 {[%emt 0:05:51]} 28. Rb2 {[%emt 0:01:16]} Rd7 {[%emt 0:01:16]} 29. e4 {[%emt 0:02:01]} Nf6 {[%emt 0:00:18]} 30. Rb6 {[%emt 0:01:39]} Qa8 {[%emt 0:02:51]} 31. e5 {[%emt 0:03:39]} Nd5 {[%emt 0:03:18]} 32. Rb2 {[%emt 0:02:39]} Rb8 {[%emt 0:02:25]} 33. Rxb8+ {[%emt 0:04:19]} Qxb8 {[%emt 0:00:02]} 34. Nd6 {[%emt 0:00:37]} Ra7 {[%emt 0:00:36]} 35. Ne4 {[%emt 0:01:42]} c4 {[%emt 0:06:31]} 36. Qf2 {[%emt 0:07:37]} Rb7 {[%emt 0:00:45]} 37. Nf6+ {[%emt 0:04:07]} Nxf6 {[%emt 0:03:34]} 38. exf6 {[%emt 0:00:09]} Rb2 {[%emt 0:00:02]} 39. Rc2 {[%emt 0:01:46]} Rb1+ {[%emt 0:00:04]} 40. Kg2 {[%emt 0:00:07]} Qa8+ {[%emt 0:02:23]} 41. Kh3 {[%emt 0:00:32]} Rb5 {[%emt 0:00:06]} 42. g4 {[%emt 0:00:28]} h5 {[%emt 0:00:17]} 43. Rd2 {[%emt 0:03:59]} hxg4+ {[%emt 0:00:25]} 44. Kxg4 {[%emt 0:00:34]} Qe4 {[%emt 0:02:12]} 45. Qd4 {[%emt 0:01:27]} Qf5+ {[%emt 0:01:20]} 46. Kg3 {[%emt 0:00:29]} Rd5 {[%emt 0:04:13]} 47. Qe3 {[%emt 0:00:16]} Rxd2 {[%emt 0:00:46]} 48. Qxd2 {[%emt 0:00:06]} Qxf6 {[%emt 0:00:03]} 49. a4 {[%emt 0:00:55]} e5 {[%emt 0:00:01]} 50. fxe5 {[%emt 0:02:01]} Qxe5+ {[%emt 0:00:01]} 51. Kg2 {[%emt 0:00:17]} Qa5 {[%emt 0:00:36]} 52. Qc2 {[%emt 0:00:17]} Qa8+ {[%emt 0:00:22]} 53. Kf2 {[%emt 0:00:35]} Qb7 {[%emt 0:00:33]} 54. Ke3 {[%emt 0:00:41]} f5 {[%emt 0:00:57]} 55. Kd4 {[%emt 0:00:30]} Qc7 {[%emt 0:00:13]} 56. h3 {[%emt 0:01:15]} Kh7 {[%emt 0:00:34]} 57. Qb2 {[%emt 0:02:31]} Qd7+ {[%emt 0:01:09]} 58. Kxc4 {[%emt 0:00:47]} Qxa4+ {[%emt 0:00:03]} 59. Qb4 {[%emt 0:00:54]} Qa6+ {[%emt 0:00:56]} 60. Kd4 {[%emt 0:00:27]} Qf6+ {[%emt 0:00:48]} 61. Ke3 {[%emt 0:00:48]} Qe5+ {[%emt 0:00:02]} 62. Kf3 {[%emt 0:00:13]} Qd5+ {[%emt 0:00:02]} 63. Ke3 {[%emt 0:00:20]} Qe6+ {[%emt 0:01:38]} 64. Kf3 $11 {[%emt 0:01:27]} Qe1 {[%emt 0:00:25]} 65. Qd4 {[%emt 0:00:44]} Qh1+ {[%emt 0:00:34]} 66. Kg3 {[%emt 0:00:09]} Qe1+ {[%emt 0:00:11]} 67. Kf3 {[%emt 0:00:06]} Qh1+ {[%emt 0:00:09]} 68. Kg3 {[%emt 0:00:03]} 1/2-1/2

[Event "Western Asian Girls Chess-ch 2023"]
[Site "Colombo"]
[Date "2023.12.01"]
[Round "3.6"]
[White "Ahmed, Walijah"]
[Black "Sagar Siya"]
[Result "1-0"]
[ECO "C97"]
[WhiteElo "1858"]
[BlackElo "1537"]
[Annotator "NA RC"]
[PlyCount "97"]
[EventDate "2023.11.30"]
[EventCountry "SRI"]
[SourceTitle "playchess.com"]
[Source "ChessBase"]
[SourceQuality "1"]
[TimeControl "5400+30"]

1. e4 {[%emt 0:00:03]} e5 {[%emt 0:00:08]} 2. Nf3 {[%emt 0:00:05]} Nc6 {[%emt 0:00:08]} 3. Bb5 {[%emt 0:00:05]} a6 {[%emt 0:00:05]} 4. Ba4 {[%emt 0:00:05]} Nf6 {[%emt 1:32:09]} 5. O-O {[%emt 0:00:19]} Be7 {[%emt 0:00:00]} 6. Re1 {[%emt 0:00:10]} b5 {[%emt 0:00:00]} 7. Bb3 {[%emt 0:00:05]} d6 {[%emt 0:00:00]} 8. c3 {[%emt 0:00:18]} O-O {[%emt 0:00:00]} 9. h3 {[%emt 0:00:11]} Na5 {[%emt 0:00:00]} 10. Bc2 {[%emt 0:00:05]} c5 {[%emt 0:00:00]} 11. d4 {[%emt 0:00:21]} Qc7 {[%emt 0:00:00]} 12. d5 {[%emt 0:00:50]} Ne8 {[%emt 0:00:00]} 13. b3 {[%emt 0:04:37]} g6 {[%emt 0:00:00]} 14. Bh6 {[%emt 0:13:41]} Ng7 {[%emt 0:00:00]} 15. Nbd2 {[%emt 0:09:04]} f6 {[%emt 0:00:00]} 16. Nf1 {[%emt 0:00:23]} Bd7 {[%emt 0:00:00]} 17. g4 {[%emt 0:03:35]} Qc8 {[%emt 0:00:00]} 18. Ng3 {[%emt 0:02:01]} Nb7 {[%emt 0:00:00]} 19. b4 {[%emt 0:04:08]} Nd8 {[%emt 0:00:00]} 20. a4 {[%emt 0:05:27]} cxb4 {[%emt 0:00:00]} 21. cxb4 {[%emt 0:02:38]} Nf7 {[%emt 0:00:00]} 22. Bxg7 {[%emt 0:10:51]} Kxg7 {[%emt 0:00:00]} 23. Qd2 {[%emt 0:04:14]} Rh8 {[%emt 0:00:00]} 24. axb5 {[%emt 0:01:26]} axb5 {[%emt 0:00:00]} 25. Bd3 {[%emt 0:01:30]} h5 {[%emt 0:00:00]} 26. gxh5 {[%emt 0:01:44]} gxh5 {[%emt 0:00:00]} 27. Nf5+ {[%emt 0:02:25]} Bxf5 {[%emt 0:00:00]} 28. exf5 {[%emt 0:00:27]} Nh6 {[%emt 0:00:00]} 29. Nh4 {[%emt 0:01:46]} Kh7 {[%emt 0:00:00]} 30. Kh2 {[%emt 0:01:22]} Rg8 {[%emt 0:00:00]} 31. Rxa8 {[%emt 0:05:10]} Qxa8 {[%emt 0:00:00]} 32. Bxb5 {[%emt 0:00:22]} Qb7 {[%emt 0:00:00]} 33. Bc6 {[%emt 0:02:55]} Qc8 {[%emt 0:00:00]} 34. Qd3 {[%emt 0:00:45]} Rg5 {[%emt 0:00:00]} 35. f4 {[%emt 0:03:19]} Rg7 {[%emt 0:00:00]} 36. b5 {[%emt 0:01:53]} Qc7 {[%emt 0:00:00]} 37. Qe3 {[%emt 0:03:13]} Qa5 {[%emt 0:00:00]} 38. Rg1 {[%emt 0:03:49]} Qa2+ {[%emt 0:00:00]} 39. Kh1 {[%emt 0:00:41]} Bd8 {[%emt 0:00:00]} 40. Rxg7+ {[%emt 0:03:09]} Kxg7 {[%emt 0:18:00]} 41. Qg1+ {[%emt 0:00:17]} Kf8 {[%emt 0:00:00]} 42. Ng6+ {[%emt 0:01:42]} Kf7 {[%emt 0:01:00]} 43. fxe5 {[%emt 0:00:48]} dxe5 {[%emt 0:00:00]} 44. Nxe5+ {[%emt 0:00:20]} fxe5 {[%emt 0:00:00]} 45. Qg6+ {[%emt 0:00:04]} Ke7 {[%emt 0:01:30]} 46. f6+ {[%emt 0:03:48]} Kd6 {[%emt 0:00:00]} 47. f7+ {[%emt 0:00:16]} Kc7 {[%emt 0:00:00]} 48. f8=Q {[%emt 0:00:24]} Qa1+ {[%emt 0:00:00]} 49. Qg1 {[%emt 0:00:18]} 1-0